bitfinex/quotes_ETHUSD_20250424
["timestamp","ask_amount","ask_price","bid_price","bid_amount"]
[1745470413416,1.1916584,1769.9,1769.7,10.76843789]
[1745470415323,1.1916584,1769.9,1769.7,16.41891513]
[1745470415524,1.1916584,1769.9,1769.7,18.51119883]
[1745470415724,1.1916584,1769.9,1769.7,19.24836309]
[1745470415928,1.1916584,1769.9,1769.7,13.59788585]
[1745470416132,1.1916584,1769.9,1769.7,7.94744796]
[1745470416424,0.4040584,1769.9,1769.8,5.65035597]
[1745470416729,0.4040584,1769.9,1769.8,7.65711375]
[1745470417930,0.4040584,1769.9,1769.8,5.65035597]
[1745470425302,0.4040584,1769.9,1769.7,7.94744796]
[1745470425503,0.4040584,1769.9,1769.7,11.50580896]
[1745470425703,0.4040584,1769.9,1769.7,11.50567917]
[1745470425934,0.4040584,1769.9,1769.7,17.15614591]
[1745470426231,0.4040584,1769.9,1769.8,5.65035597]
[1745470427431,0.4040584,1769.9,1769.8,8.65035597]
[1745470427932,0.4040584,1769.9,1769.8,10.66595467]
[1745470432712,0.4040584,1769.9,1769.8,11.48495467]
[1745470442836,0.4040584,1769.9,1769.8,10.66595467]
[1745470449367,0.4040584,1769.9,1769.8,12.0693743]
[1745470449663,0.4040584,1769.9,1769.8,12.8832743]
[1745470449864,1.2323584,1769.9,1769.8,5.0155987]
[1745470450176,1.2323584,1769.9,1769.8,10.66595467]
[1745470453138,0.4040584,1769.9,1769.8,10.66595467]
[1745470454950,0.4040584,1769.9,1769.8,11.47985467]
[1745470455369,0.4040584,1769.9,1769.8,12.8832743]
[1745470457352,0.4040584,1769.9,1769.8,12.21647735]
[1745470461780,0.4040584,1769.9,1769.8,11.40257735]
[1745470463866,0.4040584,1769.9,1769.8,5.65035597]
[1745470464171,0.4040584,1769.9,1769.8,9.38697865]
[1745470464342,0.4040584,1769.9,1769.8,9.29569752]
[1745470472386,0.4040584,1769.9,1769.8,10.07009752]
[1745470476297,0.7645,1770.3,1770.2,5.6490792]
[1745470476498,0.7645,1770.3,1770.2,6.9506098]
[1745470477595,0.7645,1770.3,1770.2,9.9506098]
[1745470480027,0.7645,1770.3,1770.1,10.75127149]
[1745470480028,0.7645,1770.3,1770.1,10.75122584]
[1745470480227,0.7645,1770.3,1770.2,5.6490792]
[1745470480397,0.7645,1770.3,1770.1,10.75121555]
[1745470480718,0.7645,1770.3,1770.2,5.6490792]
[1745470483220,0.7645,1770.3,1770.1,10.75121555]
[1745470483526,0.7645,1770.3,1770.1,5.64921555]
[1745470484719,0.7645,1770.3,1770.1,11.29834328]
[1745470484925,0.7645,1770.3,1770.1,11.29832001]
[1745470485120,0.7645,1770.3,1770.2,5.6490792]
[1745470485741,0.7645,1770.3,1770.1,5.64914866]
[1745470491603,0.7645,1770.3,1770.2,5.6490792]
[1745470491918,0.7645,1770.3,1770.1,8.6491985]
[1745470495227,0.7645,1770.3,1770.1,14.29835168]
[1745470495394,0.7645,1770.3,1770.1,8.64915318]
[1745470495594,0.7645,1770.3,1770.2,5.6490792]
[1745470497529,0.7645,1770.3,1770.1,8.64927698]
[1745470497822,0.7736,1770.4,1770.2,0.73662268]
[1745470498026,0.7736,1770.4,1770.2,6.38539601]
[1745470498819,0.7736,1770.4,1770.2,5.64877333]
[1745470500325,0.7736,1770.4,1770.3,5.64876009]
[1745470500529,0.7736,1770.4,1770.2,5.64889805]
[1745470500707,0.7736,1770.4,1770.2,11.29778791]
[1745470500908,0.7736,1770.4,1770.2,7.07866865]
[1745470502035,0.7736,1770.4,1770.3,5.64876009]
[1745470503036,0.7736,1770.4,1770.2,7.81529277]
[1745470503426,0.7736,1770.4,1770.2,8.48182279]
[1745470504442,0.7736,1770.4,1770.2,7.052044]
[1745470505327,0.8001,1770.0,1769.6,5.65099457]
[1745470505527,0.8001,1770.0,1769.8,5.65034105]
[1745470505721,0.8001,1770.0,1769.9,1.40316386]
[1745470506929,5.64892127,1770.3,1769.9,7.49351697]
[1745470507132,0.8001,1770.2,1770.1,1.40316386]
[1745470507326,0.8001,1770.2,1770.0,6.38626045]
[1745470508440,0.8001,1770.2,1770.1,5.64939833]
[1745470510825,0.8001,1770.2,1770.0,9.38631018]
[1745470511022,0.8001,1770.2,1770.0,10.88992752]
[1745470511218,0.8001,1770.2,1770.0,16.53942693]
[1745470511844,0.8001,1770.2,1770.0,10.88987571]
[1745470512447,0.8001,1770.2,1770.0,16.53934703]
[1745470513145,0.8001,1770.2,1770.0,10.88984762]
[1745470513333,0.8001,1770.2,1769.8,0.7637]
[1745470513334,0.8001,1770.2,1769.8,6.38711051]
[1745470513670,0.8001,1770.2,1769.9,8.64986466]
[1745470515734,6.44919589,1770.2,1769.9,3.0]
[1745470515939,6.44919589,1770.2,1769.8,6.38691172]
[1745470517971,6.44919589,1770.2,1769.8,12.03704181]
[1745470518164,6.44919589,1770.2,1769.8,13.54071355]
[1745470518466,6.44919589,1770.2,1769.8,7.89058287]
[1745470518660,6.44919589,1770.2,1769.8,7.8905824]
[1745470521076,6.44919589,1770.2,1769.8,13.54070883]
[1745470521232,6.44919589,1770.2,1769.8,13.54070156]
[1745470521557,6.44919589,1770.2,1769.8,7.8905823]
[1745470521756,6.44919589,1770.2,1769.8,7.89057606]
[1745470521960,6.44919589,1770.2,1769.9,5.65002938]
[1745470522347,6.44919589,1770.2,1769.8,9.38687431]
[1745470522547,0.8016,1770.1,1769.8,9.38687431]
[1745470522748,0.8016,1770.1,1769.8,10.89061286]
[1745470523375,5.64992908,1770.0,1769.8,1.50373855]
[1745470523579,0.8016,1770.0,1769.7,8.65051803]
[1745470523942,0.8016,1769.8,1769.4,11.47627496]
[1745470524174,0.8016,1769.8,1769.5,5.65131306]
[1745470524377,0.8016,1769.8,1769.5,5.65107052]
[1745470524563,0.8016,1769.8,1769.6,0.56510705]
[1745470525676,0.8016,1769.8,1769.4,5.6514635]
[1745470525977,6.45215047,1769.8,1769.4,5.6514635]
[1745470526844,6.45215047,1769.8,1769.4,5.6513881]
[1745470527251,0.8016,1769.8,1769.5,5.65129858]
[1745470527685,0.8016,1769.8,1769.6,5.65084157]
[1745470527851,0.8016,1769.8,1769.6,6.85473148]
[1745470531954,0.8016,1769.8,1769.6,1.20388991]
[1745470532154,0.8016,1769.8,1769.5,6.38792143]
[1745470532382,6.45196603,1769.8,1769.5,6.38792143]
[1745470532888,6.45196603,1769.8,1769.5,0.73675896]
[1745470535361,6.45196603,1769.8,1769.5,6.38807146]
[1745470535563,6.45196603,1769.8,1769.5,0.73675896]
[1745470535863,0.7531,1769.5,1769.4,3.0]
[1745470536597,0.7531,1769.5,1769.4,8.65163332]
[1745470538355,0.7531,1769.5,1769.4,3.0]
[1745470539305,0.7531,1769.5,1769.4,4.40435547]
[1745470540103,0.7531,1769.5,1769.4,10.05598879]
[1745470540278,0.7531,1769.5,1769.4,11.62676116]
[1745470540693,0.7531,1769.5,1769.4,5.97512784]
[1745470541900,0.7531,1769.5,1769.4,11.62676116]
[1745470542086,0.7531,1769.6,1769.4,11.62676116]
[1745470542791,0.7531,1769.6,1769.4,5.97512784]
[1745470542995,0.7531,1769.6,1769.4,11.62673297]
[1745470544102,0.7531,1769.6,1769.4,5.97512784]
[1745470545304,0.7531,1769.6,1769.4,11.62674566]
[1745470545603,0.7531,1769.6,1769.4,5.97512784]
[1745470545992,0.7531,1769.6,1769.4,11.62673414]
[1745470547416,0.7531,1769.6,1769.4,5.97512784]
[1745470547587,0.7531,1769.6,1769.4,11.62672502]
[1745470548310,0.7531,1769.6,1769.4,5.97512784]
[1745470548477,0.7531,1769.6,1769.4,11.62675714]
[1745470551314,0.7531,1769.6,1769.5,7.0556694]
[1745470551624,0.8128,1770.0,1769.9,5.65003672]
[1745470551823,0.8128,1770.2,1770.0,5.64964518]
[1745470551976,0.8128,1770.2,1769.9,5.65003672]
[1745470552578,6.46188165,1770.2,1769.9,1.40435547]
[1745470553314,6.46188165,1770.2,1769.8,7.05449367]
[1745470553810,6.46188165,1770.2,1769.8,8.40503241]
[1745470554010,6.46188165,1770.2,1769.8,14.05517617]
[1745470554780,6.46188165,1770.2,1769.8,8.40503241]
[1745470554977,6.46188165,1770.2,1769.8,14.05514034]
[1745470555507,0.8128,1770.2,1769.9,5.65000535]
[1745470555704,0.8128,1770.2,1769.9,7.0555061]
[1745470556316,6.46195671,1770.2,1769.9,1.40550075]
[1745470556714,0.8128,1770.2,1769.9,7.05553016]
[1745470559719,0.8128,1770.2,1770.0,5.64956072]
[1745470560186,0.8128,1770.2,1770.0,6.35506687]
[1745470560618,0.8128,1770.2,1770.0,0.70550615]
[1745470562818,0.8128,1770.2,1770.0,6.35521723]
[1745470563225,0.767,1770.3,1770.0,6.35521723]
[1745470563588,6.41579202,1770.3,1770.0,0.70550615]
[1745470567810,6.41579202,1770.3,1769.9,9.24337063]
[1745470569430,0.767,1770.3,1770.0,5.64968906]
[1745470570090,6.41576691,1770.3,1769.9,9.24342645]
[1745470570530,6.41576691,1770.3,1770.0,5.6496968]
[1745470570836,5.64866981,1770.4,1770.0,5.64949353]
[1745470570997,5.64866981,1770.4,1770.1,0.56494935]
[1745470571517,6.45753289,1770.5,1770.1,7.61868161]
[1745470572329,0.8094,1770.5,1770.2,5.64905838]
[1745470572509,0.8094,1770.5,1770.2,7.05341385]
[1745470572825,6.45752954,1770.5,1770.1,6.9967586]
[1745470573529,6.45752954,1770.5,1770.1,6.99674384]
[1745470575394,0.8094,1770.5,1770.1,6.99674384]
[1745470575627,6.45754962,1770.5,1770.2,6.3487354]
[1745470575812,0.8094,1770.5,1770.2,6.3487354]
[1745470576131,0.8094,1770.5,1770.2,6.34855443]
[1745470576331,0.8094,1770.5,1770.2,6.34850643]
[1745470576631,0.8094,1770.5,1770.2,7.7528619]
[1745470576833,0.8094,1770.5,1770.3,5.64875902]
[1745470577736,5.64791351,1770.6,1770.3,5.64875902]
[1745470577737,0.8064,1770.7,1770.3,8.39304638]
[1745470577896,0.8064,1770.7,1770.4,7.05268494]
[1745470578096,0.8064,1770.7,1770.4,5.64832947]
[1745470578927,6.45389796,1770.7,1770.3,8.39316121]
[1745470580233,0.8064,1770.7,1770.4,5.64841942]
[1745470580427,0.8064,1770.7,1770.3,8.39316121]
[1745470580622,6.45400263,1770.7,1770.4,0.83931612]
[1745470581258,0.8064,1770.7,1770.4,6.48765079]
[1745470581443,0.8064,1770.7,1770.4,7.89200626]
[1745470582141,0.8064,1770.7,1770.4,2.24367159]
[1745470582342,6.4539162,1770.7,1770.4,1.40435547]
[1745470582505,5.64785923,1770.6,1770.2,3.0]
[1745470582702,0.8064,1770.5,1770.2,8.64902536]
[1745470583934,0.8064,1770.5,1770.2,14.29788052]
[1745470584116,0.8064,1770.5,1770.2,10.29985876]
[1745470587532,0.8064,1770.5,1770.2,3.0]
[1745470587744,6.45470553,1770.5,1770.2,3.0]
[1745470587922,0.8064,1770.5,1770.2,8.64904917]
[1745470588849,6.4540964,1770.7,1770.3,7.05284761]
[1745470589152,6.4540964,1770.7,1770.3,12.70139225]
[1745470589335,0.8064,1770.7,1770.4,5.64830582]
[1745470590652,6.45391083,1770.7,1770.4,5.64830582]
[1745470591250,6.45391083,1770.7,1770.3,8.70378434]
[1745470592025,6.45391083,1770.7,1770.3,14.35232524]
[1745470592229,6.45391083,1770.7,1770.3,14.35232978]
[1745470592540,6.45391083,1770.7,1770.3,8.70378434]
[1745470592748,6.45391083,1770.7,1770.4,6.51880632]
[1745470593376,6.45391083,1770.7,1770.4,0.87037843]
[1745470596467,0.8064,1770.7,1770.4,6.51876379]
[1745470597784,6.45388984,1770.7,1770.4,0.87037843]
[1745470599849,6.45388984,1770.7,1770.3,8.70379107]
[1745470600879,0.8064,1770.7,1770.4,5.64843598]
[1745470601082,0.8064,1770.7,1770.4,5.64823628]
[1745470601949,6.45388458,1770.7,1770.4,5.64842949]
[1745470602290,0.8064,1770.7,1770.4,5.64842949]
[1745470602447,6.45392519,1770.7,1770.4,6.51879991]
[1745470602956,5.64738295,1770.8,1770.4,6.51879991]
[1745470602957,5.64738068,1770.8,1770.4,6.51879991]
[1745470603158,5.64738068,1770.8,1770.4,7.33529991]
[1745470603344,6.46121474,1770.9,1770.4,1.68687042]
[1745470603550,0.8142,1770.9,1770.6,5.64769138]
[1745470603771,9.4504449,1771.1,1770.7,7.05170285]
[1745470604081,4.61829437,1771.1,1770.8,5.64705573]
[1745470604283,4.61829437,1771.1,1770.8,6.91692146]
[1745470604481,3.80409437,1771.1,1770.9,1.40435547]
[1745470604681,3.80409437,1771.1,1770.9,7.86740161]
[1745470604860,3.80409437,1771.1,1771.0,5.64652738]
[1745470605056,3.80409437,1771.1,1771.0,1.3513929]
[1745470605379,3.80409437,1771.1,1771.0,6.99792028]
[1745470605579,3.80409437,1771.1,1771.0,8.40227575]
[1745470607291,3.80409437,1771.1,1771.0,6.99792028]
[1745470607607,3.80409437,1771.1,1771.0,1.3513929]
[1745470607889,3.80409437,1771.1,1770.9,3.8165]
[1745470608098,4.55509437,1771.1,1770.7,4.51177614]
[1745470608281,10.20145537,1771.1,1770.7,10.15922345]
[1745470608455,4.55509437,1771.1,1770.9,3.0]
[1745470610002,0.751,1771.1,1770.9,3.0]
[1745470610201,0.751,1771.1,1770.9,3.86470369]
[1745470610362,6.39669491,1771.3,1770.9,6.51151213]
[1745470610856,6.39669491,1771.3,1770.9,12.15800874]
[1745470611060,0.751,1771.3,1771.0,6.42210367]
[1745470611252,0.751,1771.3,1771.0,7.78906164]
[1745470611894,6.3961399,1771.5,1771.0,7.78894357]
[1745470612092,6.3961399,1771.5,1771.1,5.6462016]
[1745470612903,0.751,1771.5,1771.2,5.64588221]
[1745470613063,0.751,1771.6,1771.3,5.64545022]
[1745470613257,0.751,1771.6,1771.2,6.42139776]
[1745470613485,6.39564746,1771.6,1771.3,0.64213978]
[1745470613815,0.4040584,1771.7,1771.5,7.1565405]
[1745470613965,0.4040584,1771.7,1771.5,7.15648333]
[1745470614281,0.4040584,1771.7,1771.4,5.64507555]
[1745470614482,0.4040584,1771.7,1771.4,6.9118815]
[1745470614853,0.4040584,1771.7,1771.5,5.64492689]
[1745470615801,0.4040584,1771.7,1771.6,5.64461503]
[1745470617191,0.4040584,1771.7,1771.6,6.42031503]
[1745470618159,0.4040584,1771.7,1771.6,9.42031503]
[1745470618360,0.4040584,1771.7,1771.6,11.0004469]
[1745470620995,0.4040584,1771.7,1771.6,16.0634469]
[1745470626218,0.4040584,1771.7,1771.6,16.0634469]
[1745470630227,0.4040584,1771.7,1771.6,16.79952304]
[1745470630836,0.8137,1772.2,1772.1,5.6430224]
[1745470631053,0.8137,1772.6,1772.4,5.64180828]
[1745470631214,0.8137,1773.1,1772.5,0.73607614]
[1745470631404,0.8137,1773.0,1772.7,5.64093732]
[1745470631609,0.8137,1773.0,1772.9,0.73607614]
[1745470631922,0.8137,1773.2,1772.9,6.3763652]
[1745470632129,0.8137,1773.2,1772.7,0.73607614]
[1745470632323,0.8137,1773.2,1772.9,6.37630779]
[1745470632635,0.8137,1773.2,1772.9,7.57799713]
[1745470633002,0.8137,1773.2,1773.0,5.64003459]
[1745470633206,0.8137,1773.2,1772.9,1.93776548]
[1745470633432,0.8137,1773.2,1772.9,0.73607614]
[1745470633751,0.8137,1773.0,1772.5,8.64162793]
[1745470633906,0.8137,1772.9,1772.5,9.37770407]
[1745470634108,0.8137,1772.9,1772.5,15.01921242]
[1745470634439,1.45910314,1772.9,1772.5,9.3776075]
[1745470634836,1.45910314,1772.9,1772.6,5.64140299]
[1745470635049,1.45910314,1772.9,1772.7,6.37705129]
[1745470635254,0.8137,1772.9,1772.7,6.37705129]
[1745470638040,0.8137,1772.9,1772.7,6.37703774]
[1745470638635,0.8137,1772.9,1772.7,12.01782713]
[1745470638947,0.8137,1772.9,1772.7,6.37694668]
[1745470640342,0.8137,1772.9,1772.7,0.73607614]
[1745470640730,0.8137,1772.9,1772.6,6.37728296]
[1745470640912,6.45430366,1772.9,1772.5,5.64171752]
[1745470641107,0.64543037,1772.8,1772.5,5.64171752]
[1745470641322,0.8235,1772.7,1772.3,6.37830725]
[1745470641640,0.8235,1772.7,1772.3,6.37826019]
[1745470641808,6.46474999,1772.7,1772.3,5.64233935]
[1745470642015,0.646475,1772.6,1772.3,5.64233935]
[1745470642607,0.646475,1772.6,1772.3,11.28449067]
[1745470642849,0.8235,1772.7,1772.4,6.37807721]
[1745470644649,0.8235,1772.7,1772.4,0.73607614]
[1745470644811,6.46461848,1772.7,1772.4,0.73607614]
[1745470645011,0.8235,1772.7,1772.4,6.37808806]
[1745470645249,0.8235,1772.7,1772.4,0.73607614]
[1745470645551,1.46994584,1772.7,1772.4,0.73607614]
[1745470645937,7.11110459,1772.7,1772.4,0.73607614]
[1745470646342,1.46994584,1772.7,1772.4,0.73607614]
[1745470647057,7.11107501,1772.7,1772.4,0.73607614]
[1745470647867,5.64143461,1772.6,1772.2,11.4325752]
[1745470648023,1.38764346,1772.5,1772.2,5.79007614]
[1745470648222,1.38764346,1772.5,1772.2,11.43277025]
[1745470648831,0.8235,1772.5,1772.2,17.07525071]
[1745470649238,0.8235,1772.5,1772.2,11.43254693]
[1745470651261,0.8235,1772.5,1772.2,6.37854693]
[1745470652236,0.7812,1772.3,1772.0,3.73607614]
[1745470652572,0.7812,1772.3,1772.0,9.37939395]
[1745470652859,0.7812,1772.3,1772.0,9.37923605]
[1745470653164,0.7812,1772.3,1772.1,5.64302043]
[1745470654267,0.7812,1772.3,1772.0,9.379264]
[1745470654441,0.7812,1772.3,1772.0,10.88154193]
[1745470654922,6.42369114,1772.3,1772.0,0.73607614]
[1745470655454,5.64275412,1772.2,1772.0,0.73607614]
[1745470655656,6.42369114,1772.3,1772.0,0.73607614]
[1745470655657,6.42372314,1772.3,1772.0,0.73607614]
[1745470657465,0.7812,1772.3,1772.2,0.73607614]
[1745470657972,6.4235856,1772.3,1772.2,0.73607614]
[1745470658268,6.4235856,1772.3,1772.0,0.73607614]
[1745470658972,0.7812,1772.3,1772.0,0.73607614]
[1745470659474,6.42361375,1772.3,1772.0,0.73607614]
[1745470659871,0.7812,1772.3,1772.0,0.73607614]
[1745470660074,0.7812,1772.3,1772.0,2.23837078]
[1745470660933,6.42361922,1772.3,1772.0,2.23837078]
[1745470661132,6.42361922,1772.3,1772.0,0.73607614]
[1745470662867,5.64271337,1772.2,1772.0,0.73607614]
[1745470663071,6.42371826,1772.3,1772.0,0.73607614]
[1745470666664,0.7812,1772.3,1772.0,0.73607614]
[1745470667571,6.42358679,1772.3,1772.0,0.73607614]
[1745470671440,6.42358679,1772.3,1771.9,8.64342741]
[1745470671441,5.64274101,1772.2,1771.9,3.0]
[1745470672782,6.42379067,1772.3,1771.9,8.64365776]
[1745470673001,12.06645874,1772.3,1771.9,8.64365776]
[1745470673199,6.42379067,1772.3,1771.9,8.64365776]
[1745470673605,12.0664403,1772.3,1771.9,8.64365776]
[1745470673807,5.64271244,1772.2,1771.9,3.0]
[1745470683405,6.42379512,1772.3,1772.0,0.73607614]
[1745470683729,12.06643399,1772.3,1772.0,0.73607614]
[1745470683929,12.06643802,1772.3,1772.0,0.73607614]
[1745470686547,5.64275476,1772.2,1772.0,0.73607614]
[1745470687117,0.7908,1772.1,1771.6,3.14920801]
[1745470687324,6.43395356,1772.1,1771.8,0.73607614]
[1745470688023,5.6435342,1772.0,1771.8,0.73607614]
[1745470688223,6.43403468,1772.1,1771.8,0.73607614]
[1745470688750,12.07730628,1772.1,1771.8,0.73607614]
[1745470689057,6.43403468,1772.1,1771.8,0.73607614]
[1745470689356,5.64344571,1772.0,1771.8,0.73607614]
[1745470690662,5.64365934,1771.9,1771.7,3.0]
[1745470691027,5.64351746,1772.0,1771.7,3.0]
[1745470691229,5.64351746,1772.0,1771.7,3.37360761]
[1745470692960,5.64391326,1771.9,1771.7,3.0]
[1745470693254,5.64386079,1771.9,1771.7,3.0]
[1745470694660,5.6445072,1771.7,1771.5,5.049]
[1745470694958,5.64417882,1771.8,1771.4,7.2141671]
[1745470695369,5.64412322,1771.8,1771.4,10.21431218]
[1745470695963,5.64412322,1771.8,1771.4,10.21430025]
[1745470696738,5.64412322,1771.8,1771.4,9.38130025]
[1745470697033,0.7877,1771.7,1771.4,9.38130025]
[1745470700134,0.7877,1771.7,1771.4,9.38121658]
[1745470700530,0.7877,1771.7,1771.4,10.9592545]
[1745470700760,5.64412322,1771.8,1771.4,10.9592545]
[1745470706683,5.64386912,1771.9,1771.6,1.48987614]
[1745470706875,5.64347424,1772.0,1771.8,0.73607614]
[1745470707954,5.64365934,1771.9,1771.6,1.48987614]
[1745470709327,5.64365934,1771.9,1771.6,2.20333277]
[1745470709694,5.6435418,1772.0,1771.8,0.73607614]
[1745470710004,11.28651931,1772.1,1771.8,0.73607614]
[1745470710307,5.64334803,1772.0,1771.8,0.73607614]
[1745470717240,5.64365934,1771.9,1771.6,5.20333277]
[1745470718706,0.7806,1772.0,1771.6,2.20333277]
[1745470718903,5.64365934,1771.9,1771.6,1.48987614]
[1745470719104,5.64365934,1771.9,1771.6,4.48987614]
[1745470719416,5.64390402,1771.9,1771.6,4.48987614]
[1745470719615,5.64390402,1771.9,1771.6,1.48987614]
[1745470719819,5.64402498,1771.8,1771.6,1.48987614]
[1745470720214,5.64422101,1771.8,1771.4,1.51997614]
[1745470720447,5.64422101,1771.8,1771.5,3.0]
[1745470722253,5.64380666,1771.9,1771.5,8.64488063]
[1745470722448,5.64380666,1771.9,1771.6,0.73607614]
[1745470722747,11.28772743,1771.9,1771.6,0.73607614]
[1745470723045,5.64380666,1771.9,1771.6,0.73607614]
[1745470724644,11.2877368,1771.9,1771.6,0.73607614]
[1745470724857,5.64400188,1771.8,1771.6,0.73607614]
[1745470726258,5.64446243,1771.7,1771.5,3.73607614]
[1745470727767,6.4025321,1771.8,1771.5,3.73607614]
[1745470728364,5.6441321,1771.8,1771.5,3.73607614]
[1745470728761,6.40222445,1771.9,1771.5,9.38081634]
[1745470728921,5.64355648,1772.0,1771.6,0.7546]
[1745470729257,11.28717944,1772.0,1771.6,0.7546]
[1745470729752,5.64355648,1772.0,1771.6,0.7546]
[1745470729963,5.64355648,1772.0,1771.6,6.39920558]
[1745470730369,11.44658111,1772.1,1771.7,0.73607614]
[1745470730541,11.44658111,1772.1,1771.7,6.38033185]
[1745470730742,5.64318111,1772.1,1771.8,0.7546]
[1745470731143,11.28645797,1772.1,1771.8,0.7546]
[1745470731473,5.64318111,1772.1,1771.8,0.7546]
[1745470733773,5.64372136,1771.9,1771.6,0.7546]
[1745470734276,5.64434374,1771.7,1771.4,3.7546]
[1745470734786,0.7584,1771.7,1771.4,3.0]
[1745470735076,0.7584,1771.7,1771.4,8.64521118]
[1745470740258,6.46905138,1771.8,1771.4,10.72723908]
[1745470740459,6.46905138,1771.8,1771.4,8.64521118]
[1745470740882,6.46905138,1771.8,1771.4,14.29022006]
[1745470741095,0.8249,1771.8,1771.4,8.64500888]
[1745470741294,0.8249,1771.8,1771.5,6.38099655]
[1745470742781,6.47180558,1772.0,1771.6,6.42740895]
[1745470743011,0.64718056,1771.9,1771.6,6.42740895]
[1745470743219,6.47180558,1772.0,1771.6,6.42740895]
[1745470744715,5.6436743,1771.9,1771.6,0.7829]
[1745470750119,6.47178404,1772.0,1771.6,6.42748905]
[1745470750511,5.64369164,1771.9,1771.6,0.7829]
[1745470750820,5.64369164,1771.9,1771.6,6.42750766]
[1745470751419,5.64369164,1771.9,1771.6,6.42751393]
[1745470752027,5.64369164,1771.9,1771.6,0.7829]
[1745470753724,6.4718434,1772.0,1771.6,0.7829]
[1745470754024,5.6435434,1772.0,1771.6,12.07166547]
[1745470754326,5.6435434,1772.0,1771.6,6.4272741]
[1745470756337,9.67139437,1772.2,1771.7,0.73607614]
[1745470756338,10.27525826,1772.2,1771.7,0.73607614]
[1745470756637,15.9182539,1772.2,1771.8,6.45443303]
[1745470756935,10.27525826,1772.2,1771.8,6.45443303]
[1745470758748,9.44695826,1772.2,1771.8,6.45443303]
[1745470758937,5.64286389,1772.2,1771.8,6.45443303]
[1745470760551,5.64286389,1772.2,1771.8,12.098201]
[1745470760845,12.11312892,1772.3,1771.9,5.64364226]
[1745470761012,6.47045004,1772.3,1771.9,5.64364226]
[1745470761210,5.64255004,1772.3,1771.9,5.64364226]
[1745470761949,11.28521101,1772.3,1771.9,5.64364226]
[1745470762341,5.64255004,1772.3,1771.9,5.64364226]
[1745470763418,5.64255004,1772.3,1771.9,7.0442353]
[1745470763625,5.64255004,1772.3,1771.9,1.40059304]
[1745470763852,5.64305778,1772.1,1771.8,0.8105]
[1745470766159,5.64334509,1772.0,1771.8,0.8105]
[1745470766329,5.64334319,1772.0,1771.8,0.8105]
[1745470768963,5.64319278,1772.1,1771.8,0.8105]
[1745470769195,6.29027005,1772.1,1771.8,0.8105]
[1745470769365,5.64319278,1772.1,1771.8,0.8105]
[1745470769862,11.28647124,1772.1,1771.8,0.8105]
[1745470770261,5.64341542,1772.0,1771.8,0.8105]
[1745470770463,5.64341542,1772.0,1771.7,3.7816]
[1745470776564,5.64320112,1772.1,1771.7,3.7816]
[1745470776772,6.47078619,1772.2,1771.8,6.0221232]
[1745470776976,6.47078619,1772.2,1771.8,5.6439632]
[1745470777474,6.43139645,1772.3,1771.9,5.64360803]
[1745470777681,6.43139645,1772.3,1771.9,6.41250803]
[1745470778162,5.64249645,1772.3,1771.9,6.41231689]
[1745470778364,5.64249645,1772.3,1771.9,4.71013169]
[1745470778542,5.64295056,1772.2,1771.8,3.7689]
[1745470779078,5.64305929,1772.1,1771.8,0.7689]
[1745470779576,5.64305929,1772.1,1771.8,6.41287425]
[1745470779781,5.64305929,1772.1,1771.8,7.69211049]
[1745470779977,5.64305929,1772.1,1771.8,0.7689]
[1745470781190,11.28634756,1772.1,1771.8,0.7689]
[1745470781395,5.64305929,1772.1,1771.8,0.7689]
[1745470781693,5.64337634,1772.0,1771.7,4.50432883]
[1745470781988,5.64322868,1772.1,1771.7,10.14860755]
[1745470785295,5.64322868,1772.1,1771.7,11.72790632]
[1745470787397,5.64322868,1772.1,1771.7,18.03736695]
[1745470787992,11.28649917,1772.1,1771.7,12.39308823]
[1745470788196,5.64322868,1772.1,1771.7,12.39308823]
[1745470793719,5.64336627,1772.0,1771.7,12.39308823]
[1745470794015,5.64323742,1772.1,1771.7,12.39308823]
[1745470796115,11.2865359,1772.1,1771.7,12.39308823]
[1745470796327,5.64323742,1772.1,1771.7,12.39308823]
[1745470798414,5.64323742,1772.1,1771.7,12.39308704]
[1745470800277,5.60665742,1772.1,1771.7,12.39308704]
[1745470801319,11.24992913,1772.1,1771.7,12.39308704]
[1745470801614,5.60665742,1772.1,1771.7,12.39308704]
[1745470801814,11.24995578,1772.1,1771.7,12.39308704]
[1745470802012,5.64354745,1772.0,1771.7,5.16971404]
[1745470803315,11.28715149,1772.0,1771.7,3.7689]
[1745470803512,5.64369875,1771.9,1771.7,3.0]
[1745470804220,5.64397787,1771.8,1771.7,3.0]
[1745470804425,5.64384873,1771.9,1771.7,3.0]
[1745470807131,5.64350103,1772.0,1771.7,3.0]
[1745470808198,9.44722662,1772.1,1771.8,0.8052]
[1745470808425,3.80409437,1772.1,1771.8,7.84997985]
[1745470808798,3.80409437,1772.1,1771.8,7.84981149]
[1745470808998,3.80409437,1772.1,1771.8,9.03520816]
[1745470809304,3.80409437,1772.1,1771.8,9.03540059]
[1745470809493,9.44728158,1772.1,1771.8,0.8052]
[1745470810549,5.64318721,1772.1,1771.8,0.8052]
[1745470812919,5.64290352,1772.2,1771.8,0.8052]
[1745470813122,5.64290352,1772.2,1771.8,6.4491459]
[1745470813433,5.64290352,1772.2,1771.9,0.64491459]
[1745470813635,5.64290352,1772.2,1771.8,6.4491459]
[1745470813989,5.64307649,1772.1,1771.8,0.8052]
[1745470816133,11.28637329,1772.1,1771.8,0.8052]
[1745470816337,5.64307649,1772.1,1771.8,0.8052]
[1745470821905,5.64338732,1772.0,1771.7,3.0]
[1745470822113,5.64372155,1771.9,1771.7,3.93798756]
[1745470822316,5.64338732,1772.0,1771.7,3.0]
[1745470826039,5.64338732,1772.0,1771.6,0.803]
[1745470826245,6.4307909,1772.1,1771.7,5.64426807]
[1745470826547,12.07406888,1772.1,1771.7,5.64426807]
[1745470826712,6.4307909,1772.1,1771.7,5.64426807]
[1745470826913,6.4307909,1772.1,1771.7,6.92697977]
[1745470828347,5.6431909,1772.1,1771.8,0.803]
[1745470828909,4.59169437,1772.3,1771.8,3.73542392]
[1745470828910,3.80409437,1772.3,1771.8,3.73542392]
[1745470829300,3.80409437,1772.3,1772.2,6.3781279]
[1745470829441,3.80409437,1772.3,1772.2,7.1811279]
[1745470829745,3.80409437,1772.3,1772.2,10.1811279]
[1745470830852,3.80409437,1772.4,1772.3,9.4453856]
[1745470831018,3.80409437,1772.4,1772.3,11.76316087]
[1745470835046,5.64123386,1772.7,1772.3,11.76316087]
[1745470835369,0.762,1772.6,1772.3,9.44537711]
[1745470835569,5.64221165,1772.4,1772.0,6.41192476]
[1745470835860,5.64221165,1772.4,1772.1,3.0]
[1745470836036,5.64194631,1772.5,1772.1,3.0]
[1745470836239,5.64194631,1772.5,1772.1,8.64299237]
[1745470836740,5.64194631,1772.5,1772.0,12.76963906]